[Event "*** Titled Tuesday Blitz"]
[Site "Chess.com"]
[Date "2020.05.05"]
[Round "9"]
[White "platy3"]
[Black "wonderfultime"]
[Result "1-0"]
[WhiteElo "2730"]
[BlackElo "2908"]
[TimeControl "180+1"]
[EndTime "11:47:43 PDT"]
[Termination "platy3 won by resignation"]

1. e4 {[%clk 0:02:55.8]} 1... c5 {[%clk 0:03:00.1]} 2. Nf3 {[%clk 0:02:55.3]}
2... Nf6 {[%clk 0:03:00.6]} 3. e5 {[%clk 0:02:54.4]} 3... Nd5 {[%clk 0:03:01]}
4. Nc3 {[%clk 0:02:54.3]} 4... e6 {[%clk 0:03:01.5]} 5. Nxd5 {[%clk 0:02:50.6]}
5... exd5 {[%clk 0:03:02.4]} 6. d4 {[%clk 0:02:51.2]} 6... Nc6 {[%clk
0:03:02.2]} 7. c3 {[%clk 0:02:45.8]} 7... d6 {[%clk 0:02:58.2]} 8. exd6 {[%clk
0:02:45.3]} 8... Bxd6 {[%clk 0:02:58.2]} 9. Be2 {[%clk 0:02:29.4]} 9... O-O
{[%clk 0:02:57.1]} 10. O-O {[%clk 0:02:29.2]} 10... Re8 {[%clk 0:02:57.3]} 11.
Be3 {[%clk 0:02:23.5]} 11... c4 {[%clk 0:02:24.8]} 12. b3 {[%clk 0:02:23.1]}
12... cxb3 {[%clk 0:02:25.7]} 13. axb3 {[%clk 0:02:23.4]} 13... Re6 {[%clk
0:02:26.2]} 14. c4 {[%clk 0:02:20.7]} 14... Rg6 {[%clk 0:02:24.1]} 15. cxd5
{[%clk 0:02:13.4]} 15... Bh3 {[%clk 0:02:18.5]} 16. g3 {[%clk 0:01:50]} 16...
Bxf1 {[%clk 0:02:06.6]} 17. Bxf1 {[%clk 0:01:46.4]} 17... Nb4 {[%clk 0:02:07.1]}
18. Bc4 {[%clk 0:01:38.2]} 18... b5 {[%clk 0:01:47.4]} 19. Bd3 {[%clk
0:01:22.4]} 19... Nxd5 {[%clk 0:01:08.5]} 20. Bxg6 {[%clk 0:01:20.1]} 20... hxg6
{[%clk 0:01:09.4]} 21. Qd3 {[%clk 0:01:19]} 21... a6 {[%clk 0:01:06.9]} 22. Bg5
{[%clk 0:01:13.6]} 22... Qd7 {[%clk 0:01:00.8]} 23. Qe4 {[%clk 0:01:13.6]} 23...
Bf8 {[%clk 0:01:00.3]} 24. Ne5 {[%clk 0:01:09.8]} 24... Qe6 {[%clk 0:00:59.5]}
25. Bd2 {[%clk 0:00:55.6]} 25... Re8 {[%clk 0:00:57.1]} 26. Qf3 {[%clk
0:00:52.9]} 26... Bb4 {[%clk 0:00:50.2]} 27. Rxa6 {[%clk 0:00:44.8]} 27... Qxa6
{[%clk 0:00:46]} 28. Qxf7+ {[%clk 0:00:44.1]} 28... Kh7 {[%clk 0:00:46.5]} 29.
Qxe8 {[%clk 0:00:24.1]} 29... Qa1+ {[%clk 0:00:12.7]} 30. Kg2 {[%clk 0:00:24.2]}
30... Qxd4 {[%clk 0:00:10.9]} 31. Nf7 {[%clk 0:00:19.3]} 31... g5 {[%clk
0:00:06.6]} 32. Nxg5+ {[%clk 0:00:18.9]} 1-0

[Event "*** Titled Tuesday Blitz"]
[Site "Chess.com"]
[Date "2020.05.05"]
[Round "9"]
[White "MathiasWomacka"]
[Black "Redbandit87"]
[Result "0-1"]
[WhiteElo "2438"]
[BlackElo "2460"]
[TimeControl "180+1"]
[EndTime "11:47:44 PDT"]
[Termination "Redbandit87 won on time"]

1. e4 {[%clk 0:03:00.6]} 1... e5 {[%clk 0:02:59.1]} 2. Nf3 {[%clk 0:02:59.8]}
2... Nc6 {[%clk 0:02:59.4]} 3. Bc4 {[%clk 0:02:59.3]} 3... Nf6 {[%clk
0:02:59.2]} 4. d3 {[%clk 0:02:58.9]} 4... h6 {[%clk 0:02:57.8]} 5. O-O {[%clk
0:02:57.8]} 5... d6 {[%clk 0:02:58.3]} 6. c3 {[%clk 0:02:54.9]} 6... g5 {[%clk
0:02:58.3]} 7. Re1 {[%clk 0:02:46.5]} 7... g4 {[%clk 0:02:54.4]} 8. Nfd2 {[%clk
0:02:45.4]} 8... Bg7 {[%clk 0:02:51.3]} 9. Nf1 {[%clk 0:02:45.2]} 9... h5 {[%clk
0:02:50.7]} 10. Bg5 {[%clk 0:02:41.1]} 10... Be6 {[%clk 0:02:39.2]} 11. Bxe6
{[%clk 0:02:38.8]} 11... fxe6 {[%clk 0:02:39.1]} 12. Qb3 {[%clk 0:02:38.2]}
12... Qd7 {[%clk 0:02:25.9]} 13. Qxb7 {[%clk 0:02:37.5]} 13... Rb8 {[%clk
0:02:25.5]} 14. Qa6 {[%clk 0:02:37]} 14... Rxb2 {[%clk 0:02:25.3]} 15. Nbd2
{[%clk 0:02:35.9]} 15... O-O {[%clk 0:02:19.4]} 16. Nc4 {[%clk 0:02:33.4]} 16...
Rxf2 {[%clk 0:02:03.8]} 17. Kxf2 {[%clk 0:02:26]} 17... Nxe4+ {[%clk 0:02:03.1]}
18. Kg1 {[%clk 0:02:26]} 18... Nxg5 {[%clk 0:02:00.7]} 19. Ng3 {[%clk 0:02:20]}
19... d5 {[%clk 0:01:52.4]} 20. Nd2 {[%clk 0:01:41.8]} 20... e4 {[%clk 0:01:47]}
21. dxe4 {[%clk 0:01:35.5]} 21... Bxc3 {[%clk 0:01:46.2]} 22. Rad1 {[%clk
0:01:30]} 22... h4 {[%clk 0:01:35.2]} 23. exd5 {[%clk 0:01:11.6]} 23... Bd4+
{[%clk 0:00:35.6]} 24. Kh1 {[%clk 0:01:10.4]} 24... hxg3 {[%clk 0:00:35.9]} 25.
Rf1 {[%clk 0:00:05]} 25... Bf2 {[%clk 0:00:34.2]} 26. Qxc6 {[%clk 0:00:02.8]}
26... Qh7 {[%clk 0:00:30.7]} 27. h3 {[%clk 0:00:03]} 27... gxh3 {[%clk
0:00:24.4]} 28. Rxf2 {[%clk 0:00:02.4]} 28... hxg2+ {[%clk 0:00:23.4]} 29. Kxg2
{[%clk 0:00:02.4]} 29... Qh2+ {[%clk 0:00:17.6]} 0-1

[Event "*** Titled Tuesday Blitz"]
[Site "Chess.com"]
[Date "2020.05.05"]
[Round "9"]
[White "ChessWarrior7197"]
[Black "Harut-1998"]
[Result "1-0"]
[WhiteElo "2876"]
[BlackElo "2749"]
[TimeControl "180+1"]
[EndTime "11:47:46 PDT"]
[Termination "ChessWarrior7197 won by resignation"]

1. e4 {[%clk 0:03:00.9]} 1... e6 {[%clk 0:02:55.3]} 2. d4 {[%clk 0:03:00.2]}
2... d5 {[%clk 0:02:55.3]} 3. Nc3 {[%clk 0:03:00]} 3... Bb4 {[%clk 0:02:54.8]}
4. Ne2 {[%clk 0:02:59.4]} 4... dxe4 {[%clk 0:02:41.8]} 5. a3 {[%clk 0:02:58.8]}
5... Bxc3+ {[%clk 0:02:42]} 6. Nxc3 {[%clk 0:02:59.6]} 6... Nc6 {[%clk
0:02:39.8]} 7. d5 {[%clk 0:02:59]} 7... exd5 {[%clk 0:02:35.1]} 8. Qxd5 {[%clk
0:02:59.9]} 8... Be6 {[%clk 0:02:31.3]} 9. Qxd8+ {[%clk 0:02:57.9]} 9... Rxd8
{[%clk 0:02:30]} 10. Bf4 {[%clk 0:02:57.6]} 10... Nf6 {[%clk 0:02:23.2]} 11.
Bxc7 {[%clk 0:02:21.8]} 11... Rd7 {[%clk 0:02:18.9]} 12. Bf4 {[%clk 0:02:20]}
12... Ke7 {[%clk 0:02:13.2]} 13. Be2 {[%clk 0:02:10.2]} 13... Nd4 {[%clk
0:02:06.4]} 14. O-O-O {[%clk 0:02:08.5]} 14... Nxe2+ {[%clk 0:02:01.3]} 15. Nxe2
{[%clk 0:02:09.4]} 15... Rhd8 {[%clk 0:02:01.6]} 16. Rxd7+ {[%clk 0:02:08.9]}
16... Rxd7 {[%clk 0:02:01.2]} 17. Ng3 {[%clk 0:01:52.6]} 17... Nd5 {[%clk
0:01:58.1]} 18. Be5 {[%clk 0:01:45.3]} 18... f6 {[%clk 0:01:55.3]} 19. Bb8
{[%clk 0:01:44.9]} 19... f5 {[%clk 0:01:49.9]} 20. Bxa7 {[%clk 0:01:43.6]} 20...
Nf4 {[%clk 0:01:37.9]} 21. Rg1 {[%clk 0:01:41.8]} 21... Kf6 {[%clk 0:01:22.8]}
22. a4 {[%clk 0:01:38]} 22... g5 {[%clk 0:01:18.8]} 23. Be3 {[%clk 0:01:35.5]}
23... Ke5 {[%clk 0:01:16]} 24. f3 {[%clk 0:01:29.8]} 24... exf3 {[%clk 0:01:10]}
25. gxf3 {[%clk 0:01:30.7]} 25... Bd5 {[%clk 0:01:10.7]} 26. Bxf4+ {[%clk
0:01:25.1]} 26... gxf4 {[%clk 0:01:02.2]} 27. Re1+ {[%clk 0:01:24.4]} 27... Kf6
{[%clk 0:01:00.5]} 28. Ne2 {[%clk 0:01:24.5]} 28... Bxf3 {[%clk 0:00:50.7]} 29.
Nxf4 {[%clk 0:01:24.1]} 29... Rd4 {[%clk 0:00:50.1]} 30. Nd3 {[%clk 0:01:08]}
30... Rxa4 {[%clk 0:00:48.5]} 31. Re3 {[%clk 0:01:08.1]} 31... Be4 {[%clk
0:00:46.4]} 32. Nc5 {[%clk 0:01:05.9]} 32... Rc4 {[%clk 0:00:42.7]} 33. Nxe4+
{[%clk 0:01:02.8]} 33... Rxe4 {[%clk 0:00:42.4]} 34. Rxe4 {[%clk 0:01:00.6]}
34... fxe4 {[%clk 0:00:41.6]} 35. Kd2 {[%clk 0:01:00.8]} 35... Kf5 {[%clk
0:00:38.8]} 36. Ke3 {[%clk 0:01:00.4]} 36... Ke5 {[%clk 0:00:37.9]} 37. c4
{[%clk 0:00:59.8]} 37... b6 {[%clk 0:00:26.4]} 38. h4 {[%clk 0:00:59]} 38... h5
{[%clk 0:00:20.8]} 39. b3 {[%clk 0:00:48.7]} 39... Kf5 {[%clk 0:00:18.6]} 40. b4
{[%clk 0:00:49.2]} 40... Ke5 {[%clk 0:00:17.5]} 41. b5 {[%clk 0:00:49.7]} 41...
Kf5 {[%clk 0:00:11.9]} 42. c5 {[%clk 0:00:49.4]} 42... bxc5 {[%clk 0:00:09.6]}
43. b6 {[%clk 0:00:49.4]} 1-0

[Event "*** Titled Tuesday Blitz"]
[Site "Chess.com"]
[Date "2020.05.05"]
[Round "9"]
[White "DrBergerBerger"]
[Black "Lagmantr"]
[Result "0-1"]
[WhiteElo "2495"]
[BlackElo "2699"]
[TimeControl "180+1"]
[EndTime "11:47:46 PDT"]
[Termination "Lagmantr won by resignation"]

1. e4 {[%clk 0:03:00.9]} 1... c6 {[%clk 0:02:42.6]} 2. Nc3 {[%clk 0:03:00.2]}
2... d5 {[%clk 0:02:42.8]} 3. Nf3 {[%clk 0:03:00.7]} 3... dxe4 {[%clk
0:02:43.1]} 4. Nxe4 {[%clk 0:03:00.3]} 4... Nf6 {[%clk 0:02:43.7]} 5. Qe2 {[%clk
0:03:00.6]} 5... Nxe4 {[%clk 0:02:33.7]} 6. Qxe4 {[%clk 0:03:01.5]} 6... g6
{[%clk 0:02:34]} 7. d4 {[%clk 0:02:58.5]} 7... Bg7 {[%clk 0:02:32.9]} 8. Bc4
{[%clk 0:02:56.4]} 8... O-O {[%clk 0:02:32.5]} 9. O-O {[%clk 0:02:54.5]} 9...
Nd7 {[%clk 0:02:30.1]} 10. Re1 {[%clk 0:02:48.3]} 10... e6 {[%clk 0:02:25.8]}
11. c3 {[%clk 0:02:41.1]} 11... c5 {[%clk 0:02:17.5]} 12. Bg5 {[%clk 0:02:35.7]}
12... Qc7 {[%clk 0:02:16]} 13. d5 {[%clk 0:02:27.1]} 13... exd5 {[%clk
0:02:15.4]} 14. Qxd5 {[%clk 0:02:17.5]} 14... Nb6 {[%clk 0:02:15.2]} 15. Qd3
{[%clk 0:01:40.6]} 15... Bf5 {[%clk 0:02:08.4]} 16. Qf1 {[%clk 0:01:40.9]} 16...
Nxc4 {[%clk 0:02:05.3]} 17. Qxc4 {[%clk 0:01:41.8]} 17... h6 {[%clk 0:02:05]}
18. Bh4 {[%clk 0:01:37.8]} 18... Rfe8 {[%clk 0:02:04.1]} 19. Bg3 {[%clk
0:01:35]} 19... Qb6 {[%clk 0:01:52]} 20. Re2 {[%clk 0:01:16.7]} 20... Be6 {[%clk
0:01:32.4]} 21. Qa4 {[%clk 0:01:11.5]} 21... Bd7 {[%clk 0:01:20.6]} 22. Rxe8+
{[%clk 0:01:07.8]} 22... Bxe8 {[%clk 0:01:21.5]} 23. Qc2 {[%clk 0:01:03.7]}
23... Bc6 {[%clk 0:01:18.5]} 24. Ne5 {[%clk 0:01:01.6]} 24... Bd5 {[%clk
0:01:14.6]} 25. c4 {[%clk 0:00:52.2]} 25... Be6 {[%clk 0:01:13.2]} 26. Re1
{[%clk 0:00:46.4]} 26... Bf5 {[%clk 0:01:12.6]} 27. Qc1 {[%clk 0:00:45.2]} 27...
Re8 {[%clk 0:01:10.2]} 28. b3 {[%clk 0:00:22]} 28... Qa5 {[%clk 0:01:05.8]} 29.
Re2 {[%clk 0:00:20.5]} 29... Kh7 {[%clk 0:00:39.9]} 30. h3 {[%clk 0:00:18.3]}
30... Re6 {[%clk 0:00:37.1]} 31. Kh2 {[%clk 0:00:15.1]} 31... f6 {[%clk
0:00:33.5]} 0-1

[Event "*** Titled Tuesday Blitz"]
[Site "Chess.com"]
[Date "2020.05.05"]
[Round "9"]
[White "Nellichka"]
[Black "zala02"]
[Result "0-1"]
[WhiteElo "2085"]
[BlackElo "2266"]
[TimeControl "180+1"]
[EndTime "11:47:46 PDT"]
[Termination "zala02 won by resignation"]

1. d4 {[%clk 0:03:00.9]} 1... Nf6 {[%clk 0:02:59.1]} 2. c4 {[%clk 0:02:55.9]}
2... e6 {[%clk 0:02:58.2]} 3. Nc3 {[%clk 0:02:54.1]} 3... Bb4 {[%clk 0:02:57.6]}
4. e3 {[%clk 0:02:51.1]} 4... d5 {[%clk 0:02:45.9]} 5. Ne2 {[%clk 0:02:48.8]}
5... O-O {[%clk 0:02:41.2]} 6. a3 {[%clk 0:02:44.5]} 6... Bxc3+ {[%clk
0:02:36.3]} 7. bxc3 {[%clk 0:02:43.2]} 7... c5 {[%clk 0:02:29.3]} 8. cxd5 {[%clk
0:02:41.3]} 8... exd5 {[%clk 0:02:28.7]} 9. Nf4 {[%clk 0:02:37.5]} 9... Nc6
{[%clk 0:02:22.9]} 10. Bd3 {[%clk 0:02:34.7]} 10... c4 {[%clk 0:02:20.8]} 11.
Bc2 {[%clk 0:02:28.1]} 11... Re8 {[%clk 0:02:20.1]} 12. O-O {[%clk 0:02:26.8]}
12... Ne4 {[%clk 0:02:08.3]} 13. Bd2 {[%clk 0:02:17.1]} 13... b5 {[%clk
0:01:26.6]} 14. f3 {[%clk 0:02:13.8]} 14... Nf6 {[%clk 0:01:12.3]} 15. Qb1
{[%clk 0:02:13]} 15... Rb8 {[%clk 0:01:08]} 16. e4 {[%clk 0:02:11.6]} 16... dxe4
{[%clk 0:01:01.6]} 17. fxe4 {[%clk 0:02:10.4]} 17... Nxd4 {[%clk 0:00:52]} 18.
cxd4 {[%clk 0:02:08.3]} 18... Qxd4+ {[%clk 0:00:52]} 19. Rf2 {[%clk 0:02:07.3]}
19... Ng4 {[%clk 0:00:50.8]} 20. Be1 {[%clk 0:01:58]} 20... Bb7 {[%clk
0:00:29.7]} 21. h3 {[%clk 0:01:26.6]} 21... Nxf2 {[%clk 0:00:25.3]} 22. Bxf2
{[%clk 0:01:26.1]} 22... Qd2 {[%clk 0:00:21.8]} 23. Nd5 {[%clk 0:01:18.5]} 23...
Bxd5 {[%clk 0:00:20.5]} 24. exd5 {[%clk 0:01:18.1]} 24... Re2 {[%clk 0:00:20.7]}
25. Bxh7+ {[%clk 0:01:15]} 25... Kh8 {[%clk 0:00:21.2]} 26. Qf5 {[%clk 0:01:15]}
26... Rxf2 {[%clk 0:00:19.1]} 27. Qxf2 {[%clk 0:00:41.1]} 27... Qxf2+ {[%clk
0:00:20]} 28. Kxf2 {[%clk 0:00:41]} 28... Kxh7 {[%clk 0:00:20.9]} 29. d6 {[%clk
0:00:39.4]} 29... Rd8 {[%clk 0:00:20.3]} 30. Rd1 {[%clk 0:00:38.5]} 30... Kg6
{[%clk 0:00:20.2]} 31. Ke3 {[%clk 0:00:37.7]} 31... Kf6 {[%clk 0:00:20.6]} 32.
Rd5 {[%clk 0:00:35.4]} 32... a6 {[%clk 0:00:20.2]} 33. a4 {[%clk 0:00:34.1]}
33... b4 {[%clk 0:00:20.1]} 34. Rc5 {[%clk 0:00:33]} 34... c3 {[%clk 0:00:20.5]}
35. Rc4 {[%clk 0:00:31.8]} 35... a5 {[%clk 0:00:20.3]} 36. Rc5 {[%clk
0:00:26.8]} 36... Rxd6 {[%clk 0:00:20.4]} 37. Rxa5 {[%clk 0:00:25]} 37... c2
{[%clk 0:00:20.8]} 38. Rc5 {[%clk 0:00:24.4]} 38... b3 {[%clk 0:00:21.1]} 0-1

[Event "*** Titled Tuesday Blitz"]
[Site "Chess.com"]
[Date "2020.05.05"]
[Round "9"]
[White "1f3_2g41-0"]
[Black "boasovietica"]
[Result "0-1"]
[WhiteElo "2298"]
[BlackElo "2461"]
[TimeControl "180+1"]
[EndTime "11:47:48 PDT"]
[Termination "boasovietica won by checkmate"]

1. e4 {[%clk 0:03:00.9]} 1... e5 {[%clk 0:02:59.1]} 2. Nf3 {[%clk 0:03:01.2]}
2... Nc6 {[%clk 0:02:57.4]} 3. Bb5 {[%clk 0:03:01.7]} 3... a6 {[%clk 0:02:57.4]}
4. Ba4 {[%clk 0:02:58.1]} 4... Nf6 {[%clk 0:02:55.9]} 5. O-O {[%clk 0:02:56.5]}
5... Be7 {[%clk 0:02:56]} 6. c3 {[%clk 0:02:53.6]} 6... Nxe4 {[%clk 0:02:48.7]}
7. Re1 {[%clk 0:02:50]} 7... Nc5 {[%clk 0:02:45.1]} 8. Bxc6 {[%clk 0:02:45.5]}
8... dxc6 {[%clk 0:02:46]} 9. Nxe5 {[%clk 0:02:45.3]} 9... O-O {[%clk
0:02:41.6]} 10. d4 {[%clk 0:02:42.6]} 10... Nd7 {[%clk 0:02:32.7]} 11. f4 {[%clk
0:02:38.5]} 11... Nxe5 {[%clk 0:02:22.6]} 12. fxe5 {[%clk 0:02:33.8]} 12... Be6
{[%clk 0:02:20.9]} 13. Bf4 {[%clk 0:02:30.6]} 13... c5 {[%clk 0:02:20.1]} 14.
Be3 {[%clk 0:02:15.3]} 14... cxd4 {[%clk 0:02:11.9]} 15. cxd4 {[%clk 0:02:16.2]}
15... Rc8 {[%clk 0:02:00.1]} 16. Nc3 {[%clk 0:02:14.8]} 16... Bb4 {[%clk
0:01:47.7]} 17. a3 {[%clk 0:02:05]} 17... Bxc3 {[%clk 0:01:47.5]} 18. bxc3
{[%clk 0:02:05.9]} 18... Qd5 {[%clk 0:01:43.2]} 19. Rb1 {[%clk 0:02:04.4]} 19...
b5 {[%clk 0:01:42.7]} 20. Qf3 {[%clk 0:01:57.9]} 20... Rfd8 {[%clk 0:01:40.7]}
21. Qg3 {[%clk 0:01:56]} 21... Kh8 {[%clk 0:01:30.8]} 22. Bg5 {[%clk 0:01:44]}
22... Rd7 {[%clk 0:01:29.6]} 23. Re3 {[%clk 0:01:42.7]} 23... c5 {[%clk
0:01:25.6]} 24. Rd1 {[%clk 0:01:27.6]} 24... Qb3 {[%clk 0:01:18]} 25. Rf1 {[%clk
0:01:26.3]} 25... cxd4 {[%clk 0:01:01.7]} 26. cxd4 {[%clk 0:01:24.6]} 26... Qb2
{[%clk 0:01:01.9]} 27. h4 {[%clk 0:01:22]} 27... Qxd4 {[%clk 0:00:57.2]} 28. Kh2
{[%clk 0:01:13.2]} 28... h6 {[%clk 0:00:47.4]} 29. Rf4 {[%clk 0:01:10.2]} 29...
Qd1 {[%clk 0:00:23]} 30. Re1 {[%clk 0:01:04.5]} 30... Qh5 {[%clk 0:00:21.7]} 31.
Bf6 {[%clk 0:00:53.2]} 31... gxf6 {[%clk 0:00:20.9]} 32. exf6 {[%clk 0:00:52.7]}
32... Rg8 {[%clk 0:00:18.6]} 33. Qc3 {[%clk 0:00:47.9]} 33... Qg6 {[%clk
0:00:17]} 34. g3 {[%clk 0:00:38.5]} 34... Rd3 {[%clk 0:00:16.3]} 35. Re3 {[%clk
0:00:32.1]} 35... Rxc3 {[%clk 0:00:16]} 36. Rxc3 {[%clk 0:00:33]} 36... Qb1
{[%clk 0:00:14.9]} 37. Rf2 {[%clk 0:00:31.4]} 37... Bd5 {[%clk 0:00:13.9]} 38.
g4 {[%clk 0:00:30.3]} 38... Qh1+ {[%clk 0:00:13.6]} 39. Kg3 {[%clk 0:00:30.1]}
39... Qg1+ {[%clk 0:00:14]} 40. Kf4 {[%clk 0:00:29.7]} 40... Qxf2+ {[%clk
0:00:13.8]} 41. Ke5 {[%clk 0:00:30.6]} 41... Qe1+ {[%clk 0:00:13.6]} 42. Kd6
{[%clk 0:00:31.2]} 42... Qxc3 {[%clk 0:00:13.5]} 43. g5 {[%clk 0:00:31.7]} 43...
Qc6+ {[%clk 0:00:13.5]} 44. Ke7 {[%clk 0:00:31.6]} 44... Qe6# {[%clk 0:00:14]}
0-1

[Event "*** Titled Tuesday Blitz"]
[Site "Chess.com"]
[Date "2020.05.05"]
[Round "9"]
[White "Grischuk"]
[Black "mishikomchedlishvili"]
[Result "1-0"]
[WhiteElo "3111"]
[BlackElo "2848"]
[TimeControl "180+1"]
[EndTime "11:47:49 PDT"]
[Termination "Grischuk won on time"]

1. Nf3 {[%clk 0:03:00.9]} 1... Nf6 {[%clk 0:02:57.5]} 2. g3 {[%clk 0:03:00.5]}
2... d5 {[%clk 0:02:56.3]} 3. Bg2 {[%clk 0:03:00.2]} 3... c6 {[%clk 0:02:56.2]}
4. c4 {[%clk 0:03:00.5]} 4... Bg4 {[%clk 0:02:55]} 5. Ne5 {[%clk 0:03:00.1]}
5... Be6 {[%clk 0:02:54.6]} 6. cxd5 {[%clk 0:03:00.7]} 6... Bxd5 {[%clk
0:02:54.5]} 7. Nf3 {[%clk 0:03:01.3]} 7... Nbd7 {[%clk 0:02:52.3]} 8. Nc3 {[%clk
0:03:01.1]} 8... Bxf3 {[%clk 0:02:41.7]} 9. Bxf3 {[%clk 0:03:02]} 9... e5 {[%clk
0:02:41.9]} 10. O-O {[%clk 0:02:58.7]} 10... Bc5 {[%clk 0:02:41.7]} 11. e3
{[%clk 0:02:41.4]} 11... O-O {[%clk 0:02:34.4]} 12. d4 {[%clk 0:02:41.3]} 12...
exd4 {[%clk 0:02:34.6]} 13. exd4 {[%clk 0:02:42.2]} 13... Bd6 {[%clk 0:02:34.8]}
14. d5 {[%clk 0:02:21.3]} 14... c5 {[%clk 0:02:34.4]} 15. Nb5 {[%clk 0:02:20.3]}
15... Ne5 {[%clk 0:02:34]} 16. Bg2 {[%clk 0:02:17.1]} 16... Ng6 {[%clk
0:02:24.6]} 17. Be3 {[%clk 0:02:11.6]} 17... b6 {[%clk 0:02:21.4]} 18. Rc1
{[%clk 0:02:08.2]} 18... Ne8 {[%clk 0:02:04]} 19. b4 {[%clk 0:01:58.4]} 19...
cxb4 {[%clk 0:02:01.7]} 20. Qb3 {[%clk 0:01:53.8]} 20... a5 {[%clk 0:01:29.8]}
21. Rfe1 {[%clk 0:01:40.9]} 21... h6 {[%clk 0:01:15.5]} 22. h4 {[%clk
0:01:21.7]} 22... Ne7 {[%clk 0:01:15.1]} 23. Bd4 {[%clk 0:01:06.8]} 23... Rc8
{[%clk 0:01:02.3]} 24. a3 {[%clk 0:00:45]} 24... bxa3 {[%clk 0:00:52.5]} 25.
Nxd6 {[%clk 0:00:43.3]} 25... Nxd6 {[%clk 0:00:47.3]} 26. Bxb6 {[%clk
0:00:42.4]} 26... Qd7 {[%clk 0:00:32.7]} 27. Qxa3 {[%clk 0:00:40]} 27... Nc4
{[%clk 0:00:22.9]} 28. Rxc4 {[%clk 0:00:36.9]} 28... Rxc4 {[%clk 0:00:13.1]} 29.
Rxe7 {[%clk 0:00:36.9]} 29... Qb5 {[%clk 0:00:11.2]} 30. Qxa5 {[%clk 0:00:33.6]}
30... Qb1+ {[%clk 0:00:07]} 31. Kh2 {[%clk 0:00:33.1]} 31... Qd1 {[%clk
0:00:06.9]} 32. Re1 {[%clk 0:00:26.5]} 32... Qc2 {[%clk 0:00:03.6]} 33. Be3
{[%clk 0:00:24.5]} 1-0

[Event "*** Titled Tuesday Blitz"]
[Site "Chess.com"]
[Date "2020.05.05"]
[Round "9"]
[White "DinaBelenkaya"]
[Black "Manukyan_Artak"]
[Result "0-1"]
[WhiteElo "2121"]
[BlackElo "2325"]
[TimeControl "180+1"]
[EndTime "11:47:50 PDT"]
[Termination "Manukyan_Artak won by resignation"]

1. e4 {[%clk 0:03:00.9]} 1... c5 {[%clk 0:02:59.3]} 2. Nf3 {[%clk 0:02:57.5]}
2... a6 {[%clk 0:02:59.4]} 3. c4 {[%clk 0:02:56.7]} 3... Nc6 {[%clk 0:02:58.1]}
4. Nc3 {[%clk 0:02:56.8]} 4... g6 {[%clk 0:02:57.9]} 5. d4 {[%clk 0:02:56.5]}
5... cxd4 {[%clk 0:02:57.8]} 6. Nxd4 {[%clk 0:02:55.7]} 6... Bg7 {[%clk
0:02:58.7]} 7. Be3 {[%clk 0:02:52.3]} 7... d6 {[%clk 0:02:58.4]} 8. Be2 {[%clk
0:02:49.7]} 8... Nf6 {[%clk 0:02:58.3]} 9. O-O {[%clk 0:02:48.5]} 9... O-O
{[%clk 0:02:58.5]} 10. f3 {[%clk 0:02:47.1]} 10... h5 {[%clk 0:02:53.5]} 11. Qd2
{[%clk 0:02:46.8]} 11... Nxd4 {[%clk 0:02:52.2]} 12. Bxd4 {[%clk 0:02:46.4]}
12... Be6 {[%clk 0:02:53.1]} 13. b3 {[%clk 0:02:45.1]} 13... Qa5 {[%clk
0:02:51.6]} 14. Rfd1 {[%clk 0:02:39.6]} 14... Rfd8 {[%clk 0:02:50]} 15. Rac1
{[%clk 0:02:15.2]} 15... Rac8 {[%clk 0:02:47.5]} 16. Kh1 {[%clk 0:02:13.8]}
16... h4 {[%clk 0:02:38.7]} 17. Bxf6 {[%clk 0:01:55.1]} 17... Bxf6 {[%clk
0:02:34.9]} 18. Nd5 {[%clk 0:01:53.9]} 18... Qxd2 {[%clk 0:02:30.2]} 19. Nxf6+
{[%clk 0:01:53.5]} 19... Kg7 {[%clk 0:02:26.3]} 20. Rxd2 {[%clk 0:01:54.4]}
20... Kxf6 {[%clk 0:02:26.4]} 21. Rdc2 {[%clk 0:01:27.2]} 21... g5 {[%clk
0:02:19.3]} 22. Kg1 {[%clk 0:01:26.2]} 22... a5 {[%clk 0:02:17.7]} 23. Kf1
{[%clk 0:01:23.1]} 23... Rc5 {[%clk 0:02:13.6]} 24. Ke1 {[%clk 0:01:21]} 24...
Rdc8 {[%clk 0:02:13.1]} 25. Kd2 {[%clk 0:01:19.8]} 25... Ke5 {[%clk 0:02:10.9]}
26. a3 {[%clk 0:01:11.3]} 26... f5 {[%clk 0:02:04.5]} 27. Ke3 {[%clk 0:00:47]}
27... fxe4 {[%clk 0:01:56.2]} 28. fxe4 {[%clk 0:00:46.3]} 28... b5 {[%clk
0:01:35.5]} 29. Bd3 {[%clk 0:00:44.7]} 29... bxc4 {[%clk 0:01:16.6]} 30. Bxc4
{[%clk 0:00:42.8]} 30... a4 {[%clk 0:01:15.8]} 31. Bd3 {[%clk 0:00:15.1]} 31...
axb3 {[%clk 0:01:03.3]} 32. Rxc5+ {[%clk 0:00:10.1]} 32... dxc5 {[%clk
0:01:01.8]} 33. Bb5 {[%clk 0:00:09.3]} 33... c4 {[%clk 0:00:52.6]} 34. Kd2
{[%clk 0:00:08.9]} 34... Kd4 {[%clk 0:00:52.2]} 35. Rd1 {[%clk 0:00:06.4]} 35...
c3+ {[%clk 0:00:48.7]} 36. Kc1+ {[%clk 0:00:06.6]} 36... Kc5 {[%clk 0:00:41.8]}
37. Ba6 {[%clk 0:00:06.1]} 37... Rb8 {[%clk 0:00:32.5]} 38. Rd3 {[%clk
0:00:05.9]} 38... b2+ {[%clk 0:00:32.6]} 39. Kb1 {[%clk 0:00:05.6]} 39... Ba2+
{[%clk 0:00:32.6]} 0-1